Cogmind - Beta 17.1 @@@ ROGUE MODE // 2026.08.30 @ 16:50:32 Player: Zish Result: Destroyed by G-34 Mercenary with Small Laser Performance ------------- Evolutions (0) 0 Regions Visited (1) 200 Robots Destroyed (19) 95 Value Destroyed (377) 377 Prototype IDs (1) 20 Alien Tech Used (0) 0 Bonus (5700) 5700 TOTAL SCORE: 6392 Bonus ------- Prayed to X0-1V1 5000 Major X0-1V1 Interference 700 Cogmind --------- Core Integrity 0/250 Matter 300/300 Energy 250/250 System Corruption 0% Temperature Cool (6) Movement Core (1500) Ox29 Location -10/Materials Parts ------- > --- POWER (1) -------- Ion Engine > --- PROPULSION (2) --- (None) > --- UTILITY (2) ------ Huge Storage Unit X0-1V1's Piety Tracker > --- WEAPON (2) ------- Hammer (fused) > --- INVENTORY (25) --- Light Armor Plating Hacking Suite Peak State ------------ > --- POWER ------------ Ion Engine > --- PROPULSION ------- Light Treads Light Treads > --- UTILITY ---------- Huge Storage Unit X0-1V1's Piety Tracker > --- WEAPON ----------- Assault Rifle Light Assault Rifle > --- INVENTORY -------- Ion Engine Light Armor Plating Hammer [Rating: 19] Favorites ----------- Power Ion Engine Engine Ion Engine Propulsion Light Treads Treads Light Treads Utility Huge Storage Unit Device X0-1V1's Piety Tracker Storage Huge Storage Unit Protection Light Armor Plating Weapon Assault Rifle Ballistic Gun Assault Rifle Impact Weapon Hammer Build | -11 -10 ------- Run | Yrd Mat Slots Evolved . | . . Power . | . . Propulsion . | . . Utility . | . . Weapon . | . . Parts Attached 11 | 6 5 Power 2 | 1 1 Engine 2 | 1 1 Core . | . . Reactor . | . . Propulsion 2 | 2 . Treads 2 | 2 . Leg . | . . Wheel . | . . Hover . | . . Flight . | . . Utility 4 | 1 3 Device 1 | . 1 Storage 2 | 1 1 Processor . | . . Hackware . | . . Protection 1 | . 1 Artifact . | . . Weapon 3 | 2 1 Energy Gun . | . . Energy Cannon . | . . Ballistic Gun 2 | 2 . Ballistic Cannon . | . . Launcher . | . . Special Weapon . | . . Impact Weapon 1 | . 1 Slashing Weapon . | . . Piercing Weapon . | . . Special Melee Weapon . | . . Unidentified Prototypes 1 | . 1 Parts Lost 5 | . 5 Power 1 | . 1 Propulsion 2 | . 2 Utility . | . . Weapon 2 | . 2 Highest Loss Streak 4 | . 4 To Critical Strikes . | . . Average Backups 1 | . 2 Power . | . . Propulsion . | . . Utility . | . 1 Weapon . | . . Tool/Special . | . . Unused Backups 1 | . 1 Power . | . . Propulsion . | . . Utility 1 | . 1 Weapon . | . . Tool/Special . | . . Average Slot Usage (%) 84 | . 84 Engine 13 | . 13 Treads 18 | . 18 Device 8 | . 8 Storage 14 | . 14 Protection 5 | . 5 Ballistic Gun 17 | . 17 Impact Weapon 5 | . 5 Peak Build Rating 19 | 6 19 Average Rating 13 | 4 13 On Entrance 3 | . 6 Avg Prop Armor Cover (%) . | . . Naked Turns . | . . Heaviest Build 91 | 13 91 Greatest Support 40 | 40 40 Greatest Overweight (x) 29 | 3 29 Average Overweight (x) 4 | . 4 Largest Inventory Capacity 25 | 8 25 Average Capacity 23 | 7 23 Most Carried 4 | 1 4 Average Carried 2 | . 2 Final Capacity 25 | 8 25 Final Carried 2 | 1 2 Class Distribution -------------------- 100% | Mutant Dominant Class ---------------- Mutant | -10/Materials Resources | -11 -10 ----------- Run | Yrd Mat Matter Collected 531 | 250 281 Remotely . | . . Salvage Created 590 | . 590 Parts 42 | . 42 Haulers Intercepted 2 | . 2 Recyclers Shooed . | . . Parts Field Recycled . | . . Retrieved Matter . | . . Parts Self-Destructed . | . . Prevented . | . . Parts Restored . | . . Kills | -11 -10 ------- Run | Yrd Mat Combat Hostiles Destroyed 14 | . 14 Melee 1 | . 1 Guns 13 | . 13 Classes Destroyed 5 | . 5 Worker 2 | . 2 Hauler 2 | . 2 Operator 1 | . 1 Swarmer 6 | . 6 Grunt 8 | . 8 Best Kill Streak 5 | . 5 Combat Bots Only 4 | . 4 Max Kills in Single Turn 1 | . 1 Gunslinging . | . . Exploded . | . . Melee 1 | . 1 Uniques/NPCs Destroyed . | . . Combat | -11 -10 -------- Run | Yrd Mat Hostile Shots Fired 103 | . 103 Missed 34 | . 34 Hits 69 | . 69 Projectile 69 | . 69 AOE 2 | . 2 Critical Strikes 1 | . 1 Damage Taken 877 | . 877 Core 252 | . 252 Absorbed by Shields . | . . Core Remaining (%) 100 | 100 . Volleys Fired 56 | . 56 Largest 2 | . 2 Hottest 40 | . 40 Shots Fired 112 | . 112 Gun 112 | . 112 Cannon . | . . Launcher . | . . Special . | . . Kinetic 112 | . 112 Thermal . | . . Explosive . | . . Electromagnetic . | . . Robot Hit Streak 7 | . 7 Robot Miss Streak 4 | . 4 Penetration Max . | . . Secondary Targets 2 | . 2 Max Gunslinging Chain 1 | . 1 Shots Hit Robots 69 | . 69 Core Hits 33 | . 33 Critical Kills 3 | . 3 Critical Parts Destroyed 2 | . 2 Critical Strikes 5 | . 5 Destroy 3 | . 3 Smash 2 | . 2 Melee Attacks 11 | . 11 Impact 11 | . 11 Slashing . | . . Piercing . | . . Sneak Attacks 3 | . 3 Combat Hostiles . | . . Follow-up Attacks . | . . Damage Inflicted 988 | . 988 Guns 711 | . 711 Cannons . | . . Explosions . | . . Melee 277 | . 277 Ramming . | . . Kinetic 711 | . 711 Thermal . | . . Explosive . | . . Electromagnetic . | . . Impact 277 | . 277 Slashing . | . . Piercing . | . . Highest Corruption . | . . Average Corruption . | . . Corruption Purged . | . . Corruption Blocked . | . . Overload Shots . | . . Overflow Damage 29 | . 29 Projectiles . | . . Explosions . | . . Melee 29 | . 29 Knockbacks . | . . Impact . | . . Kinetic . | . . Secondary . | . . Self-Inflicted Damage . | . . Shots . | . . Rammed . | . . Targets Rammed . | . . Kicked . | . . Crushed . | . . Highest Temperature 37 | . 37 Average Temperature 12 | . 12 Received Heat Transfer 324 | . 324 Siege Activations . | . . Martial Activations . | . . Shielding Activations . | . . Robots Disrupted . | . . Combat Hostiles . | . . Robots Corrupted . | . . Combat Hostiles . | . . Parts Fried 1 | . 1 Impact Corruptions 1 | . 1 Robots Melted . | . . Combat Hostiles . | . . Parts Melted . | . . Heat Transferred . | . . Parts Sabotaged . | . . Parts Stolen . | . . Parts Stripped . | . . Power Chain Reactions . | . . Alert | -11 -10 ------- Run | Yrd Mat Maximum Alert Level . | . . Low Security (%) 100 | 100 100 Level 1 . | . . Level 2 . | . . Level 3 . | . . Level 4 . | . . Level 5 . | . . High Security . | . . Max Security . | . . Peak Influence 116 | . 116 Initial . | . . Average 25 | . 26 Influence Increases 405 | . 405 Destroy 0b10 Robot/C 280 | . 280 Destroy 0b10 Robot/NC 25 | . 25 Destroy Leader 64 | . 64 Successful Hack 6 | . 6 Disable Machine 15 | . 15 Lose Combat Pursuer 15 | . 15 Influence Decreases 405 | . 405 Time Decay 361 | . 361 Lost Part 10 | . 10 Purge Threat 34 | . 34 Squads Dispatched 5 | . 5 Investigation 3 | . 3 Extermination . | . . Reinforcement 2 | . 2 Assault . | . . Garrison . | . . Intercept . | . . Searches Triggered . | . . Construction Impeded . | . . Haulers Reinforced . | . . Active Scanning Responses . | . . Cargo Convoy Interrupts . | . . Stealth | -11 -10 --------- Run | Yrd Mat Distress Signals . | . . Communications Jammed . | . . Distress Signals . | . . Times Spotted 35 | . 35 Peak Tracking Total 4 | . 4 Tactical Retreats 1 | . 1 Traps | -11 -10 ------- Run | Yrd Mat Traps Triggered 3 | . 3 Indirectly . | . . Trap Hack Attempts . | . . Triggered . | . . Disarmed . | . . Reprogrammed . | . . Reused . | . . Traps Extracted . | . . Installed . | . . Triggered . | . . Machines | -11 -10 ---------- Run | Yrd Mat Machines Disabled 1 | . 1 Max in Single Turn 1 | . 1 Machines Repaired . | . . Machines Dismantled . | . . Machines Sabotaged . | . . Overloaded Fab Kills . | . . Hacking | -11 -10 --------- Run | Yrd Mat Machines Accessed 3 | . 3 Terminals 3 | . 3 Fabricators . | . . Repair Stations . | . . Recycling Units . | . . Scanalyzers . | . . Garrison Access . | . . Total Hacks 8 | . 8 Successful 2 | . 2 Failed 6 | . 6 Catastrophic . | . . Database Lockouts . | . . Manual 5 | . 5 Terminals 8 | . 8 Fabricators . | . . Repair Stations . | . . Recycling Units . | . . Scanalyzers . | . . Garrison Access . | . . Terminal Hacks 1 | . 1 Unreport Threat 1 | . 1 Fabricator Hacks . | . . Repair Station Hacks . | . . Recycling Unit Hacks . | . . Scanalyzer . | . . Garrison Access Hacks . | . . Unauthorized Hacks 1 | . 1 Terminals 1 | . 1 Operators 1 | . 1 Fabricators . | . . Repair Stations . | . . Recycling Units . | . . Scanalyzers . | . . Garrison Access . | . . Data Cores Recovered . | . . Used . | . . Hacking Detections 2 | . 2 Full Trace Events 2 | . 2 Feedback Events . | . . Feedback Blocked . | . . Robot Schematics Acquired . | . . Robots Built . | . . Authchips . | . . Time . | . . Total Robot Build Rating . | . . Part Schematics Acquired . | . . Parts Built . | . . Authchips . | . . Time . | . . Total Part Build Rating . | . . Part Studies Acquired . | . . Parts Repaired . | . . Time . | . . Parts Recycled . | . . Recycled Matter . | . . Retrieved Matter . | . . Retrieved Components . | . . Parts Scanalyzed . | . . Part Schematics Acquired . | . . Parts Damaged . | . . Bothacking | -11 -10 ------------ Run | Yrd Mat Used RIF Installer . | . . Robots Hacked . | . . Non-combat . | . . Combat . | . . Robot Hacks Applied . | . . Relay Couplers Released . | . . Fabnet Peak Effective % . | . . Robots Rewired . | . . Allies Hacked . | . . Hacks Repelled . | . . Allies | -11 -10 -------- Run | Yrd Mat Total Allies . | . . Largest Group . | . . Highest-Rated Group . | . . Highest-Rated Ally . | . . Total Orders . | . . Ally Attacks . | . . Total Damage . | . . Kills . | . . Allies Corrupted . | . . Allies Melted . | . . X0-1V1 Amusement Gains 13 | . 13 Average Entertainment 8 | . 8 Good Acts 1 | . 1 Bad Acts 3 | . 3 Intel | -11 -10 ------- Run | Yrd Mat Active Infowar (turns) . | . . Robot Analysis Total . | . . Derelict Logs Recovered . | . . Drone Launches . | . . Drone Recoveries . | . . Exploration | -11 -10 ------------- Run | Yrd Mat Turns Passed 1956 | 59 1897 Spaces Moved 450 | 34 416 Core 48 | 7 41 Treads 402 | 27 375 Legs . | . . Wheels . | . . Hover . | . . Flight . | . . Fastest Speed 50 | 50 160 Average Speed 391 | 147 411 Slowest Speed 1500 | 200 1500 Overloaded Moves . | . . Propulsion Burnouts . | . . Robots Hopped . | . . Potential Cave-ins . | . . Cave-ins Triggered . | . . Exploration Rate (%) 32 | 3 62 Regions Visited 1 Branch Regions . Pre-discovered Areas . | . . Known Exits Taken . | . . Unknown Exits Taken 1 | 1 . Scrap Searched . | . . Spaces Dug . | . . Terrain Destroyed . | . . Melee . | . . Projectile . | . . AOE . | . . Terrain Rammed . | . . Walls Destroyed . | . . Machines Disabled . | . . Actions | -11 -10 --------- Run | Yrd Mat Total 535 | 40 495 Wait 2 | . 2 Move 449 | 33 416 Hop . | . . Pick Up 4 | 1 3 Fast Attach 7 | 6 1 Attach 3 | . 3 Detach 1 | . 1 Swap 1 | . 1 Drop 1 | . 1 Fire 56 | . 56 Melee 11 | . 11 Ram . | . . Kick . | . . Crush . | . . Escape Stasis . | . . Rewire . | . . Trap . | . . Miscellaneous . | . . Route ------- -11/Scrapyard -10/Materials (discovered 3 exits: [*Mat] / [*Min] / [*Sub]) History --------- Turn | Location | Event 13 | -11/Scrapyard | Discovered new exit (range 15) 60 | -11/Scrapyard | Entered Materials 309 | -10/Materials | Build established: Mutant 535 | -10/Materials | Discovered new exit (range 13) 793 | -10/Materials | Prayed at D.C.S.S. Altar Unit 795 | -10/Materials | X0-1V1 activates XOMVISION 938 | -10/Materials | Discovered new exit (range 9) 1228 | -10/Materials | Discovered new exit (range 5) 1314 | -10/Materials | Core integrity fell below 50% 1364 | -10/Materials | Lost 4 parts (1p2n1w) 1955 | -10/Materials | Core integrity fell below 20% 1957 | -10/Materials | Destroyed by G-34 Mercenary with Small Laser Last Messages --------------- Engine. 01673_ X0-1V1 is getting bored... 01731_ Sneak attack on K-01 Serf. 01731_ K-01 Serf suffers critical hit (Smash). 01731_ K-01 Serf destroyed. 01732_ K-01 Serf collects debris. 01748_ Sneak attack on K-01 Serf. 01749_ R-06 Scavenger collects Med. Matter Pod. 01754_ R-06 Scavenger collects Wheel. 01900_ O-16 Technician: "IFF HANDSHAKE FAILED. SECURING TERMINAL." 01902_ ALERT: Hostiles spotted, dispatching reinforcements to Terminal M005. 01924_ K-01 Serf cleans the Fusion Modulator. 01953_ X0-1V1 is bored! 01954_ X0-1V1 uses Touch of Redecoration! 01954_ Fusion Modulator explodes. 01955_ K-01 Serf collects debris. 01957_ X0-1V1: "Huh? Did I miss anything?" Map ----- +----------------------------------------------------+ | ????????????????????????????????????# " | | ????????????????????????????????##### "" | | ????????????????????????????????# # "" | | ??????????????????????########### < #! | | ??????????????????????# ! # # | | ??????????????????????# % # #####/# | | ??????????????????????# # | | ??????????????????????# % + | | ??????????????????????# % # | | ??????????????????????# * # #####/# | | ??????????????????????# # #??# | | ??????????????????????# % # #??# | | ??????????????????????########### #??# | | ????????????????????????????????# #### | | ????????????#???????????????????# + | | ????????????# ??????????????????# #### | | ????????????# ??????????????????# #??# | | ????????????#o ?????????????????# #??# | | ???????##???# ?????????????????# #??# | | ???????? T?# ????????????????# #####+# | | ?????????? # ################# | | ?????????" + w g ^ | | ????????????# """ % | | ????????????# " ^ | | ????????????# #;;;k;########### " | | ????????????# ; @k #???????# ! | | ????????????# ; #???????#^ ^^ | | ????????????# ; ;#??????# | | ????????????# #??????# | | ????????????# ######## """"""" | | ????????????# # ! # """"""" | | ??????????? ; # """"""" | | ?????????? ;; """ # %"""""" | | ????????? ;# """ + """"""" | | ????????##+####;; ;; """ # | | ??????????????]#; ;# # | | ?????????????? #;;;;;;;;;######## | | ????????????? #### ; ;###??????## ##### | | ????????????? ?????## ##?????????# #???# | | ????????????????????? #??????????# #???# | | ????????????????????? ???????????# #???# | | ?????????????????????????????????#+##### | | ??????????????????????????????????? # | | ??????????????????????????????#???"" # | | ??????????????????????????????# """ # | | ??????????????????????????????# """ # | | ??????????????????????????????# # | | ??????????????????????????????# """ # | | ??????????????????????????????# """ # | | ??????????????????????????????# """ # | +----------------------------------------------------+ Best States ------------- Heat Dissipation 25 Energy Generation 10 Energy Capacity 250 Matter Stores 300 Matter Capacity 300 Sight Range 16 Terrain Scan Density 10 Armor Coverage 150 Evasion (%) 40 Recoil Reduction 2 Item Schematics ----------------- None Robot Schematics ------------------ None Fabricated ------------ Nothing Repaired ---------- Nothing Studied --------- None Alien Tech Used ----------------- None Achievements -------------- None Challenges ------------ None Game ------ Seed HardenedExperimentalCharger Manual? 0 Play Time 00:05:10 Cumulative 47.9 hours Start 2026.08.30 @ 16:45:25 End 2026.08.30 @ 16:50:32 Sessions 1 Manual Loads 0 Difficulty Rogue Special Mode None Game No. 120 Rogue 120 Adventurer 0 Explorer 0 Win Type - Total 0 Types 0/0/0/0/0/0/0/0/0/0 Lore% 21 Gallery% 30 Achievement% 27 Wizard Run 0 Options --------- Layout 1 ASCII 0 Keyboard 1 Movement Vi Keybinds 0 Fullscreen 1 Font 24/Smallcaps Map View 50x35 Zoom Use 0% Tactical HUD 1 Map Filters NONE Filters NONE Steam 1 RUN: 44483114-ee22-46bf-94cf-d2fcf7973e05